bitfinex/quotes_SOLUSD_20241107
["timestamp","ask_amount","ask_price","bid_price","bid_amount"]
[1730950961757,12.152938,189.52,189.45,23.776884]
[1730950961758,0.12549,189.51,189.45,23.776884]
[1730950961960,0.12549,189.49,189.45,23.776884]
[1730950962679,0.12549,189.5,189.45,23.776884]
[1730950962985,0.12549,189.48,189.44,23.776884]
[1730950963868,0.12549,189.49,189.44,35.929822]
[1730950964462,0.12549,189.5,189.44,35.929822]
[1730950964659,0.12549,189.5,189.46,23.776884]
[1730950966683,0.12549,189.5,189.45,23.776884]
[1730950968957,0.12549,189.5,189.44,23.776884]
[1730950968958,12.152938,189.5,189.44,23.776884]
[1730950969180,12.152938,189.51,189.46,23.776884]
[1730950969796,0.12549,189.5,189.46,23.776884]
[1730950970176,0.12549,189.5,189.45,23.776884]
[1730950970583,12.152938,189.51,189.46,12.152938]
[1730950970584,0.12549,189.51,189.46,12.152938]
[1730950970786,0.12549,189.52,189.47,23.776884]
[1730950971174,12.278428,189.52,189.47,23.776884]
[1730950971481,12.152938,189.51,189.46,23.776884]
[1730950971685,12.152938,189.51,189.45,23.776884]
[1730950972074,12.152938,189.51,189.45,35.929822]
[1730950972872,0.12549,189.51,189.45,35.929822]
[1730950973479,0.12549,189.53,189.5,0.1]
[1730950973679,12.152938,189.52,189.5,0.1]
[1730950974088,12.152938,189.52,189.51,0.1]
[1730950974397,12.152938,189.52,189.49,0.1]
[1730950974977,12.152938,189.53,189.51,0.1]
[1730950975175,12.152938,189.52,189.51,0.1]
[1730950976399,12.152938,189.52,189.46,12.152938]
[1730950976400,0.12549,189.51,189.49,0.1]
[1730950976776,0.12549,189.51,189.5,0.1]
[1730950978700,0.12549,189.52,189.51,0.1]
[1730950979599,0.12549,189.52,189.48,0.1]
[1730950979805,0.12549,189.52,189.51,0.1]
[1730950980100,0.12549,189.53,189.51,0.1]
[1730950980278,12.278428,189.53,189.51,0.1]
[1730950980680,12.278428,189.53,189.48,0.1]
[1730950981004,12.278428,189.53,189.51,0.1]
[1730950981298,12.278428,189.53,189.47,35.929822]
[1730950981299,0.12549,189.52,189.48,0.1]
[1730950981505,0.12549,189.52,189.51,0.1]
[1730950982000,21.8127,189.57,189.51,0.1]
[1730950982001,7.77516269,189.53,189.51,0.1]
[1730950982300,0.12549,189.52,189.51,0.1]
[1730950983280,0.12549,189.52,189.5,0.1]
[1730950983478,0.12549,189.52,189.51,0.1]
[1730950984093,0.12549,189.52,189.5,0.1]
[1730950984296,0.12549,189.52,189.51,0.1]
[1730950986712,0.12549,189.52,189.5,0.1]
[1730950987208,0.12549,189.52,189.51,0.1]
[1730950987508,0.12549,189.56,189.52,0.1]
[1730950987698,0.12549,189.52,189.51,0.1]
[1730950989408,0.12549,189.52,189.5,0.1]
[1730950989815,0.12549,189.52,189.51,0.1]
[1730950990311,0.12549,189.52,189.5,0.1]
[1730950990507,21.8127,189.57,189.49,0.1]
[1730950990508,7.90065269,189.51,189.49,0.1]
[1730950990805,0.12549,189.49,189.48,0.1]
[1730950991193,7.77516269,189.51,189.48,0.1]
[1730950991392,0.12549,189.5,189.49,0.1]
[1730950991805,7.77516269,189.53,189.51,0.1]
[1730950992004,7.77516269,189.54,189.52,0.1]
[1730950992205,7.77516269,189.54,189.51,0.1]
[1730950992509,0.12549,189.53,189.52,0.1]
[1730950994100,0.12549,189.53,189.51,0.1]
[1730950994303,0.12549,189.53,189.46,16.458]
[1730950994304,0.12549,189.52,189.5,0.1]
[1730950994506,0.12549,189.5,189.48,0.1]
[1730950994695,0.12549,189.5,189.46,0.1]
[1730950994890,0.12549,189.48,189.46,0.1]
[1730950995409,0.12549,189.55,189.49,0.1]
[1730950995588,0.12549,189.49,189.48,0.1]
[1730950995793,0.12549,189.49,189.41,16.0777]
[1730950995794,0.12549,189.49,189.47,0.1]
[1730950996114,0.12549,189.49,189.48,0.1]
[1730950996687,0.12549,189.49,189.46,0.1]
[1730950996894,0.12549,189.48,189.46,0.1]
[1730950997509,0.12549,189.48,189.44,0.1]
[1730950997899,0.12549,189.47,189.44,0.1]
[1730950998301,0.12549,189.47,189.45,0.1]
[1730950998502,7.90065269,189.48,189.44,0.1]
[1730950998910,7.90065269,189.48,189.45,0.1]
[1730950999194,7.90065269,189.48,189.41,23.85286269]
[1730950999195,0.12549,189.46,189.43,0.1]
[1730950999597,0.12549,189.46,189.44,0.1]
[1730951000199,0.12549,189.46,189.45,0.1]
[1730951001522,5.276,189.54,189.45,0.1]
[1730951001523,7.77516269,189.48,189.45,0.1]
[1730951001809,7.77516269,189.51,189.46,0.1]
[1730951002015,0.12549,189.5,189.46,0.1]
[1730951007615,7.90065269,189.5,189.46,0.1]
[1730951007822,0.12549,189.48,189.45,23.876884]
[1730951008024,0.12549,189.48,189.46,0.1]
[1730951009423,0.12549,189.49,189.46,0.1]
[1730951009629,0.12549,189.48,189.46,0.1]
[1730951010132,0.12549,189.49,189.46,0.1]
[1730951011405,0.91709054,189.55,189.46,0.1]
[1730951011621,7.77516269,189.5,189.46,0.1]
[1730951012003,8.26306491,189.55,189.46,0.1]
[1730951012221,0.12549,189.49,189.46,0.1]
[1730951012519,7.90065269,189.49,189.45,0.1]
[1730951012826,0.12549,189.49,189.45,0.1]
[1730951013007,0.12549,189.49,189.47,0.1]
[1730951013529,0.12549,189.49,189.46,0.1]
[1730951013723,7.77516269,189.49,189.45,0.1]
[1730951014551,7.77516269,189.49,189.47,0.1]
[1730951014744,7.77516269,189.49,189.46,0.1]
[1730951015231,7.77516269,189.49,189.45,0.1]
[1730951015540,7.77516269,189.49,189.47,0.1]
[1730951016643,7.77516269,189.49,189.44,23.776884]
[1730951016644,7.77516269,189.49,189.45,0.1]
[1730951017438,7.77516269,189.49,189.46,0.1]
[1730951017741,7.77516269,189.49,189.45,0.1]
[1730951018037,7.77516269,189.49,189.47,0.1]
[1730951018348,7.90065269,189.48,189.45,0.1]
[1730951018638,7.90065269,189.48,189.44,23.776884]
[1730951018639,7.77516269,189.47,189.44,23.876884]
[1730951018826,7.77516269,189.47,189.45,0.1]
[1730951019221,0.12549,189.53,189.47,0.1]
[1730951019421,7.90065269,189.48,189.47,0.1]
[1730951019737,7.90065269,189.48,189.44,23.776884]
[1730951019738,7.90065269,189.48,189.46,0.1]
[1730951020037,7.90065269,189.48,189.47,0.1]
[1730951021340,7.90065269,189.48,189.46,0.1]
[1730951021832,7.90065269,189.48,189.47,0.1]
[1730951022539,7.90065269,189.48,189.46,0.1]
[1730951022740,7.90065269,189.48,189.44,23.776884]
[1730951022741,7.90065269,189.48,189.47,0.1]
[1730951023542,0.12549,189.48,189.47,0.1]
[1730951024137,7.77516269,189.5,189.44,31.65204669]
[1730951024336,7.77516269,189.5,189.47,0.1]
[1730951024520,0.12549,189.53,189.48,0.1]
[1730951024716,7.77516269,189.51,189.48,0.1]
[1730951024921,7.77516269,189.51,189.45,7.77516269]
[1730951024922,7.77516269,189.51,189.49,0.1]
[1730951025121,0.12549,189.5,189.49,0.1]
[1730951026626,0.12549,189.5,189.48,0.1]
[1730951026828,0.12549,189.5,189.49,0.1]
[1730951027843,7.34597437,189.54,189.49,0.1]
[1730951028048,7.77516269,189.52,189.49,0.1]
[1730951029040,7.77516269,189.52,189.48,0.1]
[1730951029244,7.77516269,189.52,189.49,0.1]
[1730951033145,7.77516269,189.5,189.47,0.1]
[1730951033325,7.77516269,189.48,189.46,0.1]
[1730951034445,7.77516269,189.48,189.45,0.1]
[1730951034645,7.77516269,189.48,189.47,0.1]
[1730951036532,7.77516269,189.48,189.45,0.1]
[1730951036744,7.77516269,189.48,189.46,0.1]
[1730951037043,7.77516269,189.48,189.47,0.1]
[1730951037650,0.12549,189.51,189.47,0.1]
[1730951037833,7.77516269,189.49,189.47,0.1]
[1730951040553,0.12549,189.49,189.47,0.1]
[1730951041134,0.12549,189.49,189.41,16.0777]
[1730951041135,7.77516269,189.48,189.45,0.1]
[1730951041735,7.90065269,189.48,189.47,0.1]
[1730951041942,7.77516269,189.48,189.46,0.1]
[1730951042456,7.90065269,189.48,189.47,0.1]
[1730951043150,7.90065269,189.48,189.45,0.1]
[1730951043348,0.12549,189.48,189.47,0.1]
[1730951043934,0.12549,189.48,189.45,0.1]
[1730951044330,0.12549,189.48,189.47,0.1]
[1730951046357,0.12549,189.48,189.45,0.1]
[1730951046666,0.12549,189.48,189.47,0.1]
[1730951047836,0.12549,189.48,189.45,0.1]
[1730951048247,7.90065269,189.48,189.45,0.1]
[1730951048837,0.12549,189.48,189.45,0.1]
[1730951049149,0.12549,189.48,189.47,0.1]
[1730951049736,7.90065269,189.48,189.44,0.1]
[1730951049951,7.90065269,189.48,189.45,0.1]
[1730951050165,7.90065269,189.48,189.46,0.1]
[1730951050364,7.90065269,189.48,189.47,0.1]
[1730951050933,7.77516269,189.49,189.47,0.1]
[1730951051146,158.4,189.55,189.47,0.1]
[1730951051360,0.12549,189.49,189.47,0.1]
[1730951051547,7.77516269,189.5,189.45,23.876884]
[1730951051739,7.77516269,189.5,189.47,0.1]
[1730951052259,7.77516269,189.5,189.45,23.876884]
[1730951052467,7.77516269,189.5,189.47,0.1]
[1730951053450,7.77516269,189.49,189.47,0.1]
[1730951053764,7.77516269,189.49,189.45,0.1]
[1730951053950,7.77516269,189.49,189.47,0.1]
[1730951055453,7.77516269,189.49,189.45,0.1]
[1730951055776,7.77516269,189.49,189.46,0.1]
[1730951056144,0.12549,189.46,189.41,16.1777]
[1730951056346,7.77516269,189.45,189.44,0.1]
[1730951056544,7.90065269,189.46,189.44,0.1]
[1730951057553,158.4,189.52,189.44,0.1]
[1730951057863,7.77516269,189.49,189.47,0.1]
[1730951059259,7.77516269,189.5,189.47,0.1]
[1730951061173,18.07917551,189.56,189.49,0.1]
[1730951061353,7.77516269,189.51,189.49,0.1]
[1730951062345,7.77516269,189.53,189.52,0.1]
[1730951067181,7.77516269,189.54,189.52,0.1]
[1730951067676,7.77516269,189.54,189.51,0.1]
[1730951067973,7.77516269,189.54,189.52,0.1]
[1730951069552,7.90065269,189.55,189.52,0.1]
[1730951071683,7.77516269,189.54,189.52,0.1]
[1730951074585,7.77516269,189.54,189.51,0.1]
[1730951074775,7.77516269,189.54,189.52,0.1]
[1730951075268,0.12549,189.59,189.52,0.1]
[1730951075781,7.77516269,189.55,189.52,0.1]
[1730951076764,7.77516269,189.55,189.51,0.1]
[1730951076966,7.77516269,189.55,189.52,0.1]
[1730951080581,7.77516269,189.55,189.51,0.1]
[1730951080764,7.77516269,189.55,189.52,0.1]
[1730951081160,7.77516269,189.57,189.53,0.1]
[1730951081465,7.77516269,189.58,189.55,0.1]
[1730951081782,10.73015636,189.62,189.57,0.1]
[1730951081994,7.77516269,189.59,189.57,0.1]
[1730951083485,7.77516269,189.59,189.56,0.1]
[1730951083692,7.77516269,189.59,189.57,0.1]
[1730951084187,7.77516269,189.61,189.57,0.1]
[1730951084369,7.77516269,189.61,189.59,0.1]
[1730951085195,7.77516269,189.6,189.56,23.876884]
[1730951085370,7.77516269,189.58,189.56,23.776884]
[1730951085990,7.77516269,189.57,189.52,0.1]
[1730951086290,0.12549,189.59,189.52,0.1]
[1730951086494,7.77516269,189.54,189.52,0.1]
[1730951087374,7.77516269,189.55,189.54,0.1]
[1730951087581,0.12549,189.61,189.54,0.1]
[1730951087896,7.77516269,189.56,189.54,0.1]
[1730951088192,7.77516269,189.55,189.54,0.1]
[1730951088789,7.77516269,189.55,189.53,0.1]
[1730951089000,7.77516269,189.54,189.52,0.1]
[1730951089376,7.77516269,189.54,189.53,0.1]
[1730951089988,0.12549,189.59,189.54,0.1]
[1730951090190,7.77516269,189.55,189.54,0.1]
[1730951090696,0.12549,189.61,189.54,0.1]
[1730951090993,7.77516269,189.55,189.54,0.1]
[1730951091200,7.77516269,189.55,189.52,0.1]
[1730951091888,7.77516269,189.55,189.53,0.1]
[1730951092284,7.77516269,189.55,189.52,0.1]
[1730951092989,7.77516269,189.55,189.54,0.1]
[1730951094102,7.77516269,189.55,189.52,0.1]
[1730951094280,7.77516269,189.55,189.54,0.1]
[1730951094474,7.77516269,189.55,189.53,0.1]
[1730951094783,7.77516269,189.55,189.54,0.1]
[1730951095095,7.77516269,189.55,189.53,0.1]
[1730951095401,7.77516269,189.54,189.53,0.1]
[1730951096995,31.10065076,189.6,189.53,0.1]
[1730951096996,7.77516269,189.55,189.53,0.1]
[1730951097200,7.77516269,189.55,189.54,0.1]
[1730951098200,7.77516269,189.55,189.52,0.1]
[1730951098386,7.77516269,189.55,189.53,0.1]
[1730951098699,7.77516269,189.55,189.54,0.1]
[1730951098896,0.12549,189.61,189.52,0.1]
[1730951099198,7.77516269,189.55,189.54,0.1]
[1730951099374,7.77516269,189.55,189.52,0.1]
[1730951099581,7.77516269,189.55,189.54,0.1]
[1730951103383,7.77516269,189.56,189.54,0.1]
[1730951105686,7.77516269,189.56,189.55,0.1]
[1730951107196,7.77516269,189.56,189.53,0.1]
[1730951107507,7.77516269,189.56,189.55,0.1]
[1730951108099,7.77516269,189.56,189.54,0.1]
[1730951108283,7.77516269,189.56,189.55,0.1]
[1730951111413,7.77516269,189.56,189.5,7.77516269]
[1730951111414,0.12549,189.62,189.56,0.1]
[1730951111583,7.77516269,189.57,189.56,0.1]
[1730951112081,7.77516269,189.57,189.55,0.1]
[1730951112277,7.77516269,189.56,189.55,0.1]
[1730951112686,7.77516269,189.56,189.54,0.1]
[1730951112887,7.77516269,189.55,189.54,0.1]
[1730951114304,10.65292173,189.63,189.6,0.1]
[1730951114496,10.65292173,189.63,189.61,0.1]
[1730951114806,10.65292173,189.63,189.62,0.1]
[1730951116085,10.65292173,189.63,189.62,23.876884]
[1730951116502,7.77516269,189.67,189.65,0.1]
[1730951116802,7.77516269,189.68,189.65,0.1]
[1730951116997,7.77516269,189.67,189.65,0.1]
[1730951117397,7.77516269,189.66,189.63,0.1]
[1730951117710,7.77516269,189.65,189.64,0.1]
[1730951117896,0.12549,189.7,189.65,0.1]
[1730951118094,7.77516269,189.67,189.66,0.1]
[1730951118791,0.12549,189.7,189.66,0.1]
[1730951118991,7.77516269,189.67,189.66,0.1]
[1730951119618,7.77516269,189.67,189.65,0.1]
[1730951119793,7.77516269,189.67,189.66,0.1]
[1730951120805,7.77516269,189.68,189.66,0.1]
[1730951120984,7.77516269,189.68,189.65,0.1]
[1730951121186,7.77516269,189.68,189.67,0.1]
[1730951121589,17.61737495,189.74,189.7,0.1]
[1730951121786,3.87410739,189.73,189.72,0.1]
[1730951122012,11.64927008,189.73,189.72,0.1]
[1730951122712,7.77516269,189.73,189.72,0.1]
[1730951124016,10.55705962,189.74,189.73,0.1]
[1730951125697,18.33222231,189.74,189.73,0.1]
[1730951125900,18.33222231,189.74,189.72,0.1]
[1730951126099,7.77516269,189.73,189.72,0.1]
[1730951126296,0.12549,189.78,189.72,0.1]
[1730951126507,7.77516269,189.73,189.72,0.1]
[1730951128697,7.77516269,189.73,189.71,0.1]
[1730951128905,7.77516269,189.72,189.71,0.1]
[1730951129820,7.77516269,189.72,189.68,0.1]
[1730951130013,7.77516269,189.69,189.66,0.1]
[1730951130218,7.77516269,189.67,189.66,0.1]
[1730951130393,7.77516269,189.67,189.64,0.1]
[1730951130598,7.77516269,189.65,189.63,0.1]
[1730951130798,7.77516269,189.64,189.62,0.1]
[1730951130999,7.77516269,189.63,189.61,0.1]
[1730951132222,7.77516269,189.63,189.62,0.1]
[1730951133309,7.77516269,189.64,189.62,0.1]
[1730951133621,0.12549,189.69,189.66,0.1]
[1730951133916,7.77516269,189.67,189.66,0.1]
[1730951134213,7.77516269,189.67,189.64,0.1]
[1730951134419,7.77516269,189.65,189.62,0.1]
[1730951134630,7.77516269,189.63,189.62,0.1]
[1730951134830,7.77516269,189.64,189.62,0.1]
[1730951135014,7.77516269,189.64,189.63,0.1]
[1730951136522,7.77516269,189.66,189.64,0.1]
[1730951136816,7.77516269,189.66,189.65,0.1]
[1730951139212,158.4,189.72,189.69,0.1]
[1730951139418,7.77516269,189.71,189.7,0.1]
[1730951146212,7.77516269,189.72,189.71,0.1]
[1730951147119,7.77516269,189.74,189.72,0.1]
[1730951147324,7.77516269,189.74,189.73,0.1]
[1730951147937,7.77516269,189.74,189.72,0.1]
[1730951148227,7.77516269,189.73,189.72,0.1]
[1730951148437,7.77516269,189.74,189.73,0.1]
[1730951149851,7.77516269,189.75,189.73,0.1]
[1730951150146,7.77516269,189.75,189.74,0.1]
[1730951150339,7.77516269,189.76,189.75,0.1]
[1730951152444,7.77516269,189.76,189.74,0.1]
[1730951152642,41.82056876,189.8,189.74,0.1]
[1730951152643,7.77516269,189.75,189.74,0.1]
[1730951155055,7.77516269,189.75,189.72,0.1]
[1730951155351,7.77516269,189.74,189.72,0.1]
[1730951155548,7.77516269,189.74,189.73,0.1]
[1730951157556,7.77516269,189.74,189.72,0.1]
[1730951157861,7.77516269,189.74,189.73,0.1]
[1730951161757,7.77516269,189.74,189.72,0.1]
[1730951161965,7.90065269,189.73,189.69,0.1]
[1730951162247,7.77516269,189.7,189.67,0.1]
[1730951162550,7.77516269,189.68,189.67,0.1]
[1730951163155,7.77516269,189.68,189.65,0.1]
[1730951163156,0.12549,189.67,189.65,0.1]
[1730951163451,0.12549,189.67,189.54,0.1]
[1730951163452,7.77516269,189.66,189.63,0.1]
[1730951163635,0.12549,189.69,189.64,0.1]
[1730951164339,0.12549,189.64,189.61,0.1]
[1730951164545,7.77516269,189.62,189.61,0.1]
[1730951166155,7.77516269,189.62,189.56,16.2146]
[1730951166156,7.77516269,189.62,189.6,0.1]
[1730951166352,7.77516269,189.61,189.6,0.1]
[1730951166544,7.77516269,189.61,189.57,0.1]
[1730951166733,163.672,189.68,189.5,6.6147]
[1730951166734,0.12549,189.67,189.58,0.1]
[1730951167228,7.77516269,189.59,189.58,0.1]
[1730951167456,0.12549,189.67,189.6,0.1]
[1730951167655,7.77516269,189.63,189.61,0.1]
[1730951169837,7.77516269,189.63,189.62,0.1]
[1730951172254,0.12549,189.68,189.62,0.1]
[1730951172469,0.12549,189.68,189.63,0.1]
[1730951173162,211.31465076,189.7,189.64,0.1]
[1730951173545,7.77516269,189.67,189.66,0.1]
[1730951173740,7.77516269,189.67,189.64,0.1]
[1730951174053,7.77516269,189.67,189.58,15.2962]
[1730951174054,7.77516269,189.65,189.63,0.1]
[1730951174241,7.77516269,189.64,189.63,0.1]
[1730951175343,7.77516269,189.64,189.6,0.1]
[1730951175663,7.77516269,189.61,189.6,0.1]
[1730951177942,7.77516269,189.61,189.58,0.1]
[1730951178167,0.12549,189.66,189.6,0.1]
[1730951179767,7.77516269,189.61,189.6,0.1]
[1730951180468,7.77516269,189.61,189.59,0.1]
[1730951180759,27.1336,189.68,189.6,0.1]
[1730951180973,0.12549,189.67,189.6,0.1]
[1730951181646,0.12549,189.67,189.59,0.1]
[1730951181845,7.77516269,189.6,189.59,0.1]
[1730951182473,7.77516269,189.6,189.58,0.1]
[1730951182763,5.39779,189.67,189.6,0.1]
[1730951182954,0.12549,189.67,189.6,0.1]
[1730951183151,0.12549,189.67,189.54,24.25806269]
[1730951183152,0.12549,189.67,189.61,0.1]
[1730951183551,0.12549,189.67,189.6,0.1]
[1730951183752,7.77516269,189.61,189.6,0.1]
[1730951183952,7.77516269,189.61,189.59,0.1]
[1730951184755,7.77516269,189.61,189.6,0.1]
[1730951186447,7.77516269,189.61,189.59,0.1]
[1730951186648,7.77516269,189.61,189.6,0.1]
[1730951187373,180.2616,189.68,189.61,0.1]
[1730951187659,7.77516269,189.63,189.62,0.1]
[1730951189642,7.77516269,189.63,189.6,0.1]
[1730951189847,7.77516269,189.63,189.61,0.1]
[1730951190048,7.77516269,189.63,189.62,0.1]
[1730951190652,7.77516269,189.63,189.61,0.1]
[1730951191455,7.77516269,189.62,189.6,0.1]
[1730951191647,7.77516269,189.61,189.6,0.1]
[1730951194271,7.77516269,189.63,189.6,0.1]
[1730951194452,0.12549,189.69,189.62,0.1]
[1730951194654,165.32309311,189.71,189.65,0.1]
[1730951194949,7.77516269,189.66,189.64,0.1]
[1730951195144,7.77516269,189.65,189.64,0.1]
[1730951196552,7.77516269,189.65,189.63,0.1]
[1730951196856,7.77516269,189.64,189.63,0.1]
[1730951198975,7.77516269,189.64,189.6,0.1]
[1730951199175,7.77516269,189.62,189.6,0.1]
[1730951199574,7.77516269,189.61,189.6,0.1]
[1730951200173,7.77516269,189.62,189.61,0.1]
[1730951204070,7.77516269,189.62,189.6,0.1]
[1730951204264,7.77516269,189.61,189.59,0.1]
[1730951204579,7.77516269,189.6,189.59,0.1]
[1730951211784,7.77516269,189.6,189.54,16.4829]
[1730951211785,7.77516269,189.6,189.57,0.1]
[1730951211990,7.77516269,189.59,189.57,0.1]
[1730951212988,7.77516269,189.59,189.58,0.1]
[1730951215375,7.77516269,189.59,189.57,0.1]
[1730951215579,7.77516269,189.59,189.58,0.1]
[1730951215774,7.77516269,189.59,189.57,0.1]
[1730951216086,7.77516269,189.58,189.57,0.1]
[1730951216874,0.12549,189.65,189.57,0.1]
[1730951217074,158.52549,189.65,189.59,0.1]
[1730951217272,7.90065269,189.6,189.59,0.1]
[1730951217991,7.8696316,189.6,189.59,0.1]
[1730951218493,7.7441416,189.6,189.59,0.1]
[1730951218697,7.77516269,189.61,189.6,0.1]
[1730951220601,7.90065269,189.61,189.57,0.1]
[1730951220910,7.77516269,189.58,189.57,0.1]
[1730951221991,7.77516269,189.59,189.58,0.1]
[1730951222896,7.77516269,189.59,189.52,23.88556269]
[1730951222897,7.77516269,189.59,189.57,0.1]
[1730951223199,7.77516269,189.58,189.57,0.1]
[1730951223701,7.77516269,189.58,189.56,0.1]
[1730951223903,7.77516269,189.57,189.55,0.1]
[1730951224081,7.77516269,189.56,189.55,0.1]
[1730951225603,7.77516269,189.57,189.56,0.1]
[1730951226073,165.32309311,189.65,189.56,0.1]
[1730951226279,7.77516269,189.61,189.59,0.1]
[1730951226483,7.77516269,189.61,189.6,0.1]
[1730951226685,7.77516269,189.61,189.59,0.1]
[1730951226901,0.12549,189.64,189.6,0.1]
[1730951227605,7.77516269,189.61,189.6,0.1]
[1730951228992,7.77516269,189.61,189.59,0.1]
[1730951229196,7.77516269,189.6,189.59,0.1]
[1730951234184,7.77516269,189.6,189.58,0.1]
[1730951234386,7.77516269,189.59,189.58,0.1]
[1730951237610,0.12549,189.65,189.6,0.1]
[1730951237787,7.77516269,189.61,189.6,0.1]
[1730951239386,7.77516269,189.61,189.58,0.1]
[1730951239604,0.12549,189.65,189.6,0.1]
[1730951239793,0.12549,189.65,189.58,0.1]
[1730951240289,0.12549,189.65,189.6,0.1]
[1730951240694,97.31174604,189.68,189.6,0.1]
[1730951241016,7.77516269,189.62,189.6,0.1]
[1730951241493,0.12549,189.67,189.61,0.1]
[1730951241801,7.77516269,189.63,189.61,0.1]
[1730951242511,7.77516269,189.62,189.61,0.1]
[1730951246008,0.12549,189.68,189.61,0.1]
[1730951246309,7.77516269,189.63,189.62,0.1]
[1730951248111,0.12549,189.68,189.62,0.1]
[1730951248312,0.12549,189.68,189.64,0.1]
[1730951248608,7.77516269,189.65,189.64,0.1]
[1730951249804,7.77516269,189.65,189.63,0.1]
[1730951250010,0.12549,189.68,189.64,0.1]
[1730951251221,7.77516269,189.65,189.62,0.1]
[1730951251396,7.77516269,189.64,189.63,0.1]
[1730951252108,0.12549,189.68,189.65,0.1]
[1730951252312,7.77516269,189.66,189.65,0.1]
[1730951252500,10.72556397,189.69,189.67,0.1]
[1730951252696,7.77516269,189.68,189.67,0.1]
[1730951252888,7.90065269,189.68,189.67,0.1]
[1730951253217,10.72556397,189.69,189.68,0.1]
[1730951255606,18.50072666,189.69,189.68,0.1]
[1730951262109,10.72556397,189.69,189.68,0.1]
[1730951262312,7.77516269,189.7,189.69,0.1]
[1730951262801,164.93862864,189.77,189.7,0.1]
[1730951263000,0.12549,189.76,189.72,0.1]
[1730951263221,7.77516269,189.73,189.72,0.1]
[1730951266126,7.77516269,189.73,189.71,0.1]
[1730951266326,7.77516269,189.72,189.7,0.1]
[1730951266526,7.77516269,189.71,189.7,0.1]
[1730951267528,0.12549,189.77,189.72,0.1]
[1730951267712,7.77516269,189.73,189.72,0.1]
[1730951268235,7.77516269,189.73,189.71,0.1]
[1730951268418,7.77516269,189.72,189.71,0.1]
[1730951268929,7.77516269,189.72,189.7,0.1]
[1730951269107,7.77516269,189.71,189.7,0.1]
[1730951278045,7.77516269,189.71,189.68,0.1]
[1730951278337,7.77516269,189.69,189.67,0.1]
[1730951278532,7.77516269,189.68,189.67,0.1]
[1730951278843,7.77516269,189.68,189.65,0.1]
[1730951279030,7.77516269,189.66,189.65,0.1]
[1730951279232,7.77516269,189.66,189.64,0.1]
[1730951279435,7.77516269,189.65,189.63,0.1]
[1730951279616,7.77516269,189.64,189.63,0.1]
[1730951282115,0.12549,189.69,189.63,0.1]
[1730951282316,21.7648,189.72,189.67,0.1]
[1730951282534,7.77516269,189.68,189.67,0.1]
[1730951292246,7.77516269,189.68,189.56,111.43]
[1730951292247,7.77516269,189.68,189.66,0.1]
[1730951292847,7.77516269,189.67,189.65,0.1]
[1730951293025,7.77516269,189.66,189.63,0.1]
[1730951293229,7.77516269,189.64,189.62,0.1]
[1730951293532,7.77516269,189.63,189.61,0.1]
[1730951293735,7.77516269,189.62,189.61,0.1]
[1730951294546,7.77516269,189.63,189.61,0.1]
[1730951294848,7.77516269,189.62,189.61,0.1]
[1730951295043,7.77516269,189.64,189.62,0.1]
[1730951295245,0.12549,189.69,189.64,0.1]
[1730951295550,0.12549,189.71,189.66,0.1]
[1730951295847,7.77516269,189.67,189.66,0.1]